bitfinex/quotes_BTCUSD_20241120
["timestamp","ask_amount","ask_price","bid_price","bid_amount"]
[1732104753389,19.99312918,93300.0,93299.0,0.032154]
[1732104753841,20.1002443,93300.0,93299.0,0.032154]
[1732104754741,19.99312918,93300.0,93299.0,0.032154]
[1732104756105,19.99312918,93300.0,93299.0,0.04049814]
[1732104756556,19.99312918,93300.0,93299.0,0.04072843]
[1732104756778,19.99312918,93300.0,93299.0,0.04158443]
[1732104758848,10.0,93300.0,93299.0,0.04158443]
[1732104759312,9.70181279,93300.0,93299.0,0.0423217]
[1732104759537,9.4942032,93300.0,93299.0,0.04358443]
[1732104760429,9.4298952,93300.0,93299.0,0.04358443]
[1732104760648,9.3870232,93300.0,93299.0,0.04358443]
[1732104761591,9.3227152,93300.0,93299.0,0.04358443]
[1732104761815,9.25482179,93300.0,93299.0,0.04358443]
[1732104762482,9.23338579,93300.0,93299.0,0.04358443]
[1732104762695,9.19051379,93300.0,93299.0,0.04358443]
[1732104762913,9.16907779,93300.0,93299.0,0.04358443]
[1732104763155,9.14764179,93300.0,93299.0,0.04158443]
[1732104763613,9.06189779,93300.0,93299.0,0.04158443]
[1732104763869,9.04046179,93300.0,93299.0,0.04158443]
[1732104764296,0.0008559,93310.0,93309.0,0.00834414]
[1732104764511,0.0008559,93310.0,93309.0,0.04049514]
[1732104765920,0.0008559,93310.0,93309.0,0.032151]
[1732104766141,0.10797102,93310.0,93309.0,0.06985099]
[1732104766634,0.10797102,93310.0,93309.0,0.032151]
[1732104769282,0.10797102,93310.0,93309.0,0.06917794]
[1732104769734,0.10797102,93310.0,93309.0,0.032151]
[1732104771566,0.12047265,93310.0,93309.0,0.032151]
[1732104771795,0.1284462,93310.0,93309.0,0.032151]
[1732104772026,0.14837982,93310.0,93309.0,0.032151]
[1732104772262,0.12844772,93310.0,93309.0,0.032151]
[1732104772495,0.14838551,93310.0,93309.0,0.032151]
[1732104773840,0.13588388,93310.0,93309.0,0.032151]
[1732104774193,0.14566095,93310.0,93309.0,0.032151]
[1732104774286,0.13589124,93310.0,93309.0,0.032151]
[1732104774548,0.12791404,93310.0,93309.0,0.032151]
[1732104774786,0.0008559,93310.0,93309.0,0.04156674]
[1732104782164,1e-07,93311.0,93310.0,0.00834414]
[1732104782392,0.0117128,93347.0,93329.0,0.032144]
[1732104782393,0.0017136,93330.0,93329.0,0.032144]
[1732104782904,0.001713,93335.0,93329.0,0.032144]
[1732104782905,0.001713,93335.0,93334.0,0.04048614]
[1732104783194,0.001713,93335.0,93334.0,0.04155736]
[1732104783436,0.0017128,93347.0,93346.0,0.032138]
[1732104783654,0.0017128,93347.0,93346.0,0.03320903]
[1732104783895,0.0097133,93347.0,93346.0,0.03320903]
[1732104784384,0.0017128,93347.0,93346.0,0.03320903]
[1732104786152,0.0017128,93347.0,93346.0,0.032138]
[1732104787069,0.0017128,93347.0,93346.0,0.06973743]
[1732104787288,0.0017128,93347.0,93346.0,0.03320911]
[1732104789265,0.0008562,93372.0,93363.0,0.032132]
[1732104789727,0.0008562,93372.0,93363.0,0.03320292]
[1732104791395,4e-07,93364.0,93363.0,0.07288515]
[1732104791614,0.0008562,93372.0,93371.0,0.04047314]
[1732104791835,0.0008562,93372.0,93371.0,0.04154393]
[1732104792056,0.0008562,93372.0,93371.0,0.06884535]
[1732104792271,2e-07,93372.0,93371.0,0.06884535]
[1732104792507,2e-07,93372.0,93371.0,0.04154393]
[1732104793448,0.0017124,93380.0,93379.0,0.04047114]
[1732104793675,0.0017124,93380.0,93379.0,0.04154183]
[1732104794353,4e-07,93383.0,93382.0,0.04047014]
[1732104794576,4e-07,93383.0,93382.0,0.04177105]
[1732104794825,0.0017118,93394.0,93387.0,0.04046814]
[1732104795280,0.0017118,93394.0,93391.0,0.00834414]
[1732104795527,0.0017118,93394.0,93393.0,0.032122]
[1732104795991,0.0017118,93394.0,93393.0,0.04046614]
[1732104796244,8e-07,93394.0,93393.0,0.04069643]
[1732104796455,0.0008558,93404.0,93403.0,0.04046214]
[1732104798105,0.0004,93419.0,93418.0,0.032113]
[1732104799247,0.0004,93419.0,93418.0,0.03318331]
[1732104799741,0.0004,93419.0,93418.0,0.04152745]
[1732104800033,1e-06,93419.0,93418.0,0.08025203]
[1732104800266,0.0017132,93424.0,93421.0,0.04068643]
[1732104800267,2e-07,93422.0,93421.0,0.04068643]
[1732104801743,2e-07,93422.0,93421.0,0.032112]
[1732104803486,2e-07,93422.0,93421.0,0.04068643]
[1732104804144,4e-07,93424.0,93423.0,0.04045614]
[1732104804360,4e-07,93424.0,93423.0,0.04152624]
[1732104805703,4e-07,93424.0,93423.0,0.04045614]
[1732104808942,0.01142557,93419.0,93418.0,0.03849429]
[1732104809171,0.12954281,93419.0,93418.0,0.032113]
[1732104809416,0.01265798,93419.0,93418.0,0.032113]
[1732104809640,0.01265798,93419.0,93418.0,0.04045714]
[1732104809885,4e-07,93424.0,93423.0,0.032112]
[1732104810366,4e-07,93424.0,93423.0,0.03318221]
[1732104811682,0.0017128,93429.0,93428.0,0.03211]
[1732104811898,0.0017128,93429.0,93428.0,0.0331801]
[1732104812332,8e-07,93429.0,93428.0,0.0331801]
[1732104814217,8e-07,93429.0,93428.0,0.0224761]
[1732104814435,0.0012564,93441.0,93438.0,0.021404]
[1732104814662,0.0012564,93441.0,93440.0,0.021404]
[1732104814887,0.01394097,93441.0,93440.0,0.021404]
[1732104815553,0.01394097,93441.0,93440.0,0.02247147]
[1732104818002,0.0012564,93441.0,93440.0,0.02247147]
[1732104818234,0.0778559,93458.0,93457.0,0.0214]
[1732104818467,0.081,93469.0,93458.0,0.021399]
[1732104818721,0.0105877,93478.0,93468.0,0.021397]
[1732104818954,0.0753,93478.0,93477.0,0.021395]
[1732104819406,0.08800393,93478.0,93477.0,0.021395]
[1732104821299,0.08500393,93478.0,93477.0,0.021395]
[1732104821551,0.08500393,93478.0,93477.0,0.05851873]
[1732104824562,0.09034258,93478.0,93477.0,0.05851873]
[1732104826908,0.09035919,93478.0,93477.0,0.05851873]
[1732104827133,0.01805919,93478.0,93477.0,0.05851873]
[1732104827581,0.01305919,93478.0,93477.0,0.05851873]
[1732104830751,7.9e-07,93482.0,93477.0,0.03819325]
[1732104830979,7.9e-07,93482.0,93481.0,0.021394]
[1732104831249,7.9e-07,93482.0,93481.0,0.02246349]
[1732104832655,7.9e-07,93482.0,93481.0,0.021394]
[1732104833091,0.01099549,93499.0,93497.0,0.021391]
[1732104833314,0.01099549,93499.0,93498.0,0.02139]
[1732104833315,0.0004,93499.0,93498.0,0.02139]
[1732104835824,0.02024841,93499.0,93498.0,0.02139]
[1732104836264,0.0004,93499.0,93498.0,0.02139]
[1732104836500,1e-06,93499.0,93498.0,0.02139]
[1732104836723,1e-06,93499.0,93498.0,0.02245723]
[1732104837878,1e-06,93500.0,93499.0,0.15132359]
[1732104838110,1e-06,93500.0,93499.0,0.12139]
[1732104839284,1e-06,93500.0,93499.0,0.02139]
[1732104840956,0.01270746,93500.0,93499.0,0.02139]
[1732104841195,0.01270752,93500.0,93499.0,0.02139]
[1732104841665,1e-06,93500.0,93499.0,0.02139]
[1732104842147,0.01271363,93500.0,93499.0,0.02245711]
[1732104843351,0.00350749,93514.0,93513.0,0.021387]
[1732104843599,0.02537748,93514.0,93513.0,0.021387]
[1732104844105,0.17428534,93514.0,93513.0,0.021387]
[1732104844337,0.22110619,93514.0,93513.0,0.021387]
[1732104844583,0.10399107,93514.0,93513.0,0.021387]
[1732104844860,0.10199107,93514.0,93513.0,0.021387]
[1732104845097,0.22444852,93514.0,93513.0,0.021387]
[1732104845802,0.22244852,93514.0,93513.0,0.021387]
[1732104846032,0.22444852,93514.0,93513.0,0.021387]
[1732104846249,0.30144103,93514.0,93513.0,0.021387]
[1732104846463,0.30144103,93514.0,93513.0,0.05834149]
[1732104846932,0.30144103,93514.0,93513.0,0.021387]
[1732104847380,0.30229613,93514.0,93513.0,0.021387]
[1732104848274,0.32229613,93514.0,93513.0,0.021387]
[1732104848488,0.30229613,93514.0,93513.0,0.021387]
[1732104848736,0.30029613,93514.0,93513.0,0.021387]
[1732104848966,0.19318101,93514.0,93513.0,0.021387]
[1732104849188,0.05253868,93514.0,93513.0,0.021387]
[1732104849397,0.0207334,93514.0,93513.0,0.021387]
[1732104849833,0.0008551,93514.0,93513.0,0.021387]
[1732104850079,0.02077158,93514.0,93513.0,0.021387]
[1732104850779,1.8e-07,93516.0,93515.0,0.021386]
[1732104853099,1.8e-07,93516.0,93515.0,0.02201915]
[1732104853525,1.8e-07,93516.0,93515.0,0.021386]
[1732104853746,1.8e-07,93516.0,93515.0,0.0224551]
[1732104854637,1.8e-07,93516.0,93515.0,0.021386]
[1732104855954,0.17271817,93516.0,93515.0,0.021386]
[1732104856174,0.17071817,93516.0,93515.0,0.021386]
[1732104857026,0.20258925,93516.0,93515.0,0.021386]
[1732104857447,0.12550018,93516.0,93515.0,0.021386]
[1732104857711,0.2998614,93516.0,93515.0,0.021386]
[1732104859905,0.022,93512.0,93511.0,0.021387]
[1732104860119,0.0672,93509.0,93508.0,0.021388]
[1732104860339,0.29726122,93509.0,93508.0,0.021388]
[1732104861047,0.25201512,93509.0,93508.0,0.021388]
[1732104861252,0.28395259,93509.0,93508.0,0.021388]
[1732104861512,0.28395259,93509.0,93504.0,0.021389]
[1732104861513,0.02,93505.0,93504.0,0.021389]
[1732104861725,0.098,93501.0,93500.0,0.02139]
[1732104861960,0.022,93500.0,93499.0,0.0017102]
[1732104862182,0.17547309,93500.0,93499.0,0.0231002]
[1732104862867,0.19542862,93500.0,93499.0,0.0231002]
[1732104863307,0.19542862,93500.0,93499.0,0.0017102]
[1732104863516,0.19542862,93500.0,93499.0,0.0231002]
[1732104863963,0.19542862,93500.0,93499.0,0.0017102]
[1732104864258,0.19542862,93500.0,93499.0,0.0231002]
[1732104864741,0.22732871,93500.0,93499.0,0.0231002]
[1732104864973,0.19429989,93500.0,93499.0,0.0231002]
[1732104865633,0.19379989,93500.0,93499.0,0.0231002]
[1732104866487,0.18045359,93500.0,93499.0,0.0231002]
[1732104867657,0.18152965,93500.0,93499.0,0.0231002]
[1732104868324,0.18148991,93500.0,93499.0,0.0231002]
[1732104868969,0.20448991,93500.0,93499.0,0.0231002]
[1732104869202,0.21676008,93500.0,93499.0,0.0231002]
[1732104869430,0.20341385,93500.0,93499.0,0.0231002]
[1732104870104,0.20448991,93500.0,93499.0,0.0017102]
[1732104870319,0.18041385,93500.0,93499.0,0.0231002]
[1732104870582,0.14853771,93500.0,93499.0,0.0231002]
[1732104870828,0.14961377,93500.0,93499.0,0.0231002]
[1732104871283,0.12903771,93500.0,93499.0,0.0231002]
[1732104871703,0.11861512,93500.0,93499.0,0.0231002]
[1732104872206,0.12769118,93500.0,93499.0,0.0231002]
[1732104872436,0.11861512,93500.0,93499.0,0.0231002]
[1732104875733,0.0115,93500.0,93499.0,0.0231002]
[1732104875981,0.0902,93511.0,93510.0,0.021388]
[1732104876223,0.11661512,93511.0,93510.0,0.021388]
[1732104877884,0.11861512,93511.0,93510.0,0.021388]
[1732104878377,0.11661512,93511.0,93510.0,0.021388]
[1732104879832,0.0095,93511.0,93510.0,0.021388]
[1732104880322,1.8e-07,93516.0,93515.0,0.021386]
[1732104882633,1.8e-07,93516.0,93515.0,0.121386]
[1732104882851,1.8e-07,93516.0,93515.0,0.31112045]
[1732104883106,8e-08,93519.0,93518.0,0.021386]
[1732104883321,8e-08,93519.0,93518.0,0.31102897]
[1732104883987,8e-08,93519.0,93518.0,0.35872596]
[1732104884201,8e-08,93519.0,93518.0,0.121886]
[1732104884439,8e-08,93519.0,93518.0,0.0229521]
[1732104884894,0.0095,93537.0,93523.0,0.021385]
[1732104885110,0.0095,93537.0,93534.0,0.021382]
[1732104885550,0.0095,93537.0,93534.0,0.02245091]
[1732104886414,0.0827,93536.0,93534.0,0.02245091]
[1732104886623,0.0095,93537.0,93534.0,0.021382]
[1732104887595,0.002,93536.0,93534.0,0.021382]
[1732104887806,0.0028555,93535.0,93534.0,0.021382]
[1732104888022,0.0008555,93535.0,93534.0,0.021382]
[1732104888461,0.0008555,93535.0,93534.0,0.05995284]
[1732104888683,0.0008555,93535.0,93534.0,0.06102177]
[1732104888901,0.0008555,93535.0,93534.0,0.02245093]
[1732104890299,0.0797,93564.0,93534.0,0.28878405]
[1732104890526,0.0797,93564.0,93549.0,0.021379]
[1732104890739,0.0095,93551.0,93549.0,0.021379]
[1732104891423,0.625869,93550.0,93549.0,0.021379]
[1732104891678,0.625869,93550.0,93549.0,0.22899412]
[1732104891679,0.33824407,93550.0,93549.0,0.22899412]
[1732104891899,0.26778421,93550.0,93549.0,0.121879]
[1732104892345,0.26778421,93550.0,93549.0,0.15937439]
[1732104892595,0.26778421,93550.0,93549.0,0.05937439]
[1732104893256,0.37489933,93550.0,93549.0,0.05937439]
[1732104895255,0.26778421,93550.0,93549.0,0.05937439]
[1732104897577,0.26978421,93550.0,93549.0,0.05937439]
[1732104897772,0.27063921,93550.0,93549.0,0.05937439]
[1732104899118,0.37775433,93550.0,93549.0,0.05937439]
[1732104902053,0.38725433,93550.0,93549.0,0.05937439]
[1732104902289,0.37575433,93550.0,93549.0,0.05937439]
[1732104902816,0.26863921,93550.0,93549.0,0.05937439]
[1732104904567,0.26863921,93550.0,93549.0,0.021379]
[1732104904568,0.47915433,93550.0,93549.0,0.021379]
[1732104905026,0.52865433,93550.0,93549.0,0.021379]
[1732104906209,0.54856059,93550.0,93549.0,0.021379]
[1732104907534,0.0445,93544.0,93543.0,0.02138]
[1732104907753,0.0215,93524.0,93523.0,0.023095]
[1732104907964,0.25461512,93524.0,93523.0,0.023095]
[1732104908193,0.27454127,93524.0,93523.0,0.023095]
[1732104908661,0.29754127,93524.0,93523.0,0.00171]
[1732104909378,0.36696711,93524.0,93523.0,0.023095]
[1732104909810,0.37493771,93524.0,93523.0,0.00171]
[1732104910058,0.37493771,93524.0,93523.0,0.023095]
[1732104910309,0.37493771,93524.0,93517.0,0.021386]
[1732104910310,0.012,93518.0,93517.0,0.021386]
[1732104910545,0.18838696,93518.0,93517.0,0.021386]
[1732104910793,0.13501187,93518.0,93517.0,0.021886]
[1732104911022,0.002,93519.0,93518.0,0.021886]
[1732104911483,0.002,93519.0,93518.0,0.021386]
[1732104911484,0.10911512,93519.0,93518.0,0.021386]
[1732104911950,0.11911512,93519.0,93518.0,0.021386]
[1732104912661,0.13903311,93519.0,93518.0,0.021386]
[1732104912921,0.11911512,93519.0,93518.0,0.021386]
[1732104914055,0.10911512,93519.0,93518.0,0.021386]
[1732104914286,0.002,93519.0,93518.0,0.021386]
[1732104914503,0.002,93519.0,93518.0,0.02195317]
[1732104914732,0.002,93525.0,93524.0,0.021384]
[1732104916763,0.002,93525.0,93524.0,0.121384]
[1732104917213,0.002,93528.0,93527.0,0.021384]
[1732104919486,0.10911512,93528.0,93527.0,0.021384]
[1732104919702,0.10700616,93528.0,93527.0,0.021384]
[1732104921302,0.01,93540.0,93539.0,0.021381]
[1732104921513,0.12661512,93540.0,93539.0,0.021381]
[1732104924132,0.13457942,93540.0,93539.0,0.021381]
[1732104924348,0.0195,93536.0,93535.0,0.021382]
[1732104924579,0.13565548,93536.0,93535.0,0.021382]
[1732104925232,0.0095,93534.0,93533.0,0.021382]
[1732104925464,0.17555548,93534.0,93533.0,0.021382]
[1732104925924,0.01,93523.0,93522.0,0.121385]
[1732104926155,0.11711512,93523.0,93522.0,0.121385]
[1732104926798,0.11711512,93523.0,93522.0,0.021385]
[1732104927647,0.12661512,93523.0,93522.0,0.021385]
[1732104927863,0.17471512,93523.0,93522.0,0.021385]
[1732104928866,0.0195,93519.0,93518.0,0.023096]
[1732104929084,0.20741512,93519.0,93518.0,0.023096]
[1732104931391,0.20741512,93519.0,93518.0,0.00171]
[1732104931613,0.25034085,93519.0,93518.0,0.00171]
[1732104931838,0.26034085,93519.0,93518.0,0.00171]
[1732104932310,0.26034085,93519.0,93518.0,0.023096]
[1732104932547,0.22734085,93519.0,93518.0,0.023096]
[1732104932769,0.20741512,93519.0,93518.0,0.023096]
[1732104932994,0.19861512,93519.0,93518.0,0.023096]
[1732104933206,0.11781512,93519.0,93518.0,0.023096]
[1732104933465,0.11711512,93519.0,93518.0,0.023096]
[1732104933909,0.11781512,93519.0,93518.0,0.023096]
[1732104934167,0.11781512,93519.0,93518.0,0.06156124]
[1732104934384,0.11781512,93519.0,93518.0,0.023096]
[1732104937150,0.26731512,93519.0,93518.0,0.023096]
[1732104937334,0.28726664,93519.0,93518.0,0.023096]
[1732104937609,0.28726664,93519.0,93518.0,0.00171]
[1732104937806,0.28726664,93519.0,93518.0,0.023096]
[1732104938731,0.48461607,93519.0,93518.0,0.00171]
[1732104938936,0.37768607,93519.0,93518.0,0.00171]
[1732104940072,0.32919034,93519.0,93518.0,0.023096]
[1732104940296,0.28726664,93519.0,93518.0,0.023096]
[1732104940507,0.29726664,93519.0,93518.0,0.023096]
[1732104940735,0.31918662,93519.0,93518.0,0.023096]
[1732104940963,0.32918662,93519.0,93518.0,0.023096]
[1732104941157,0.32918607,93519.0,93518.0,0.023096]
[1732104941961,0.31918607,93519.0,93518.0,0.023096]
[1732104942188,0.32918607,93519.0,93518.0,0.023096]
[1732104942442,0.29726664,93519.0,93518.0,0.00171]
[1732104942638,0.32917914,93519.0,93518.0,0.023096]
[1732104943096,0.32917914,93519.0,93518.0,0.00171]
[1732104943311,0.32917914,93519.0,93518.0,0.023096]
[1732104943747,0.32916693,93519.0,93518.0,0.023096]
[1732104943967,0.28725812,93519.0,93518.0,0.023096]
[1732104945275,0.28725621,93519.0,93518.0,0.023096]
[1732104948291,0.31917196,93519.0,93518.0,0.023096]
[1732104949609,0.32002696,93519.0,93518.0,0.023096]
[1732104954460,0.43695696,93519.0,93518.0,0.00171]
[1732104954665,0.46030127,93519.0,93518.0,0.00171]
[1732104955129,0.49226204,93519.0,93518.0,0.00171]
[1732104955354,0.46030127,93519.0,93518.0,0.00171]
[1732104955622,0.49226204,93519.0,93518.0,0.00171]
[1732104955832,0.46030127,93519.0,93518.0,0.00171]
[1732104957549,0.46526127,93519.0,93518.0,0.00171]
[1732104960283,0.274651,93500.0,93490.0,0.021392]
[1732104960504,0.27481512,93500.0,93485.0,0.021393]
[1732104960736,0.34001627,93500.0,93497.0,0.02139]
[1732104960959,0.20601627,93500.0,93499.0,0.0231002]
[1732104961877,0.18301627,93500.0,93499.0,0.0231002]
[1732104962567,0.18409233,93500.0,93499.0,0.0231002]
[1732104963273,0.17231627,93500.0,93499.0,0.0231002]
[1732104963548,0.18301627,93500.0,93499.0,0.0231002]
[1732104963748,0.16967196,93500.0,93499.0,0.0231002]
[1732104963989,0.12705621,93500.0,93499.0,0.0231002]
[1732104964409,0.12708413,93500.0,93499.0,0.0231002]
[1732104965498,0.12708413,93500.0,93499.0,0.0221002]
[1732104965922,0.15903931,93500.0,93499.0,0.0221002]
[1732104966371,0.13708413,93500.0,93499.0,0.0221002]
[1732104966628,0.14081512,93500.0,93499.0,0.0221002]
[1732104966912,0.18309997,93500.0,93499.0,0.0221002]
[1732104967334,0.16975464,93500.0,93499.0,0.0221002]
[1732104967789,0.15905464,93500.0,93499.0,0.0221002]
[1732104968227,0.12709186,93500.0,93499.0,0.0221002]
[1732104968447,0.12709186,93500.0,93499.0,0.1221002]
[1732104968653,0.12709186,93500.0,93499.0,0.31217595]
[1732104968872,0.12709186,93500.0,93499.0,0.31206838]
[1732104970230,0.12709186,93500.0,93499.0,0.1221002]
[1732104970484,0.12709186,93500.0,93499.0,0.0221002]
[1732104970707,0.01997674,93500.0,93499.0,0.0221002]
[1732104971185,0.01,93509.0,93508.0,0.021388]
[1732104971414,0.16905307,93509.0,93508.0,0.021388]
[1732104971671,0.16975307,93509.0,93508.0,0.021388]
[1732104972146,0.16905307,93509.0,93508.0,0.021388]
[1732104972385,0.13709125,93509.0,93508.0,0.021388]
[1732104972607,0.0337,93506.0,93505.0,0.021389]
[1732104972852,0.14189118,93506.0,93505.0,0.021389]
[1732104973095,0.20717216,93506.0,93505.0,0.021389]
[1732104973313,0.1938305,93506.0,93505.0,0.021389]
[1732104973766,0.14189118,93506.0,93505.0,0.021389]
[1732104973994,0.19717708,93506.0,93505.0,0.021389]
[1732104974265,0.20717708,93506.0,93505.0,0.021389]
[1732104974497,0.20610102,93506.0,93505.0,0.021389]
[1732104974712,0.20717708,93506.0,93505.0,0.021389]
[1732104974945,0.20610102,93506.0,93505.0,0.021389]
[1732104975180,0.19717708,93506.0,93505.0,0.021389]
[1732104975422,0.18310102,93506.0,93505.0,0.021389]
[1732104976144,0.20717708,93506.0,93505.0,0.021389]
[1732104976377,0.2199633,93506.0,93505.0,0.021389]
[1732104976607,0.21888724,93506.0,93505.0,0.021389]
[1732104977521,0.0337,93500.0,93499.0,0.0221002]
[1732104977770,0.20610102,93500.0,93499.0,0.0221002]
[1732104977999,0.21888736,93500.0,93499.0,0.0221002]
[1732104978458,0.20610102,93500.0,93499.0,0.0221002]
[1732104978906,0.21610102,93500.0,93499.0,0.0221002]
[1732104979126,0.23806708,93500.0,93499.0,0.0221002]
[1732104979430,0.25085273,93500.0,93499.0,0.0221002]
[1732104979649,0.18310102,93500.0,93499.0,0.0221002]
[1732104980313,0.11781512,93500.0,93499.0,0.0221002]
[1732104980524,0.14977558,93500.0,93499.0,0.0221002]
[1732104980746,0.16975086,93500.0,93499.0,0.0221002]
[1732104982281,0.18309614,93500.0,93499.0,0.0221002]
[1732104985317,0.20609614,93500.0,93499.0,0.0221002]
[1732104985548,0.2071722,93500.0,93499.0,0.0221002]
[1732104986289,0.2831722,93500.0,93499.0,0.0007102]
[1732104986519,0.32939614,93500.0,93499.0,0.0221002]
[1732104986743,0.37414494,93500.0,93499.0,0.0221002]
[1732104987416,0.26411512,93500.0,93499.0,0.0221002]
[1732104987636,0.3421978,93500.0,93499.0,0.0221002]
[1732104987851,0.32941035,93500.0,93499.0,0.0221002]
[1732104988101,0.3421978,93500.0,93499.0,0.0221002]
[1732104989904,0.1958978,93500.0,93499.0,0.0221002]
[1732104990145,0.15906413,93500.0,93499.0,0.0221002]
[1732104990619,0.12709551,93500.0,93499.0,0.0221002]
[1732104990839,0.1590515,93500.0,93499.0,0.0221002]
[1732104991309,0.12709065,93500.0,93499.0,0.0221002]
[1732104991566,0.01997553,93500.0,93499.0,0.1221002]
[1732104991785,0.000856,93506.0,93505.0,0.021389]
[1732104992013,0.000856,93506.0,93505.0,0.121389]
[1732104992014,0.02083019,93506.0,93505.0,0.121389]
[1732104994295,0.02082527,93506.0,93505.0,0.121389]
[1732104994531,0.12794039,93506.0,93505.0,0.121389]
[1732104995935,0.12794039,93506.0,93505.0,0.021389]
[1732104996820,0.02082527,93506.0,93505.0,0.021389]
[1732104997043,0.000856,93506.0,93505.0,0.021389]
[1732104997539,0.000856,93506.0,93505.0,0.15115837]
[1732104997764,0.000856,93506.0,93505.0,0.250089]
[1732104998947,0.000856,93506.0,93505.0,0.259389]
[1732104999177,1e-06,93506.0,93505.0,0.259389]
[1732105000982,1e-06,93506.0,93505.0,0.54424464]
[1732105001201,1e-06,93506.0,93505.0,0.259389]
[1732105006134,1e-06,93506.0,93505.0,0.021389]
[1732105006371,1e-06,93506.0,93505.0,0.130689]
[1732105006581,1e-06,93506.0,93505.0,0.31119582]
[1732105006773,1e-06,93506.0,93505.0,0.121389]
[1732105007026,1e-06,93506.0,93505.0,0.31227965]
[1732105007226,1e-06,93506.0,93505.0,0.31121034]
[1732105007645,1e-06,93506.0,93505.0,0.030689]
[1732105007876,1e-06,93506.0,93505.0,0.021389]
[1732105008327,1e-06,93506.0,93505.0,0.03175831]
[1732105008554,1e-06,93506.0,93505.0,0.02245831]
[1732105009011,1e-06,93506.0,93505.0,0.021389]
[1732105011466,1e-06,93506.0,93505.0,0.3128689]
[1732105011720,1e-06,93506.0,93505.0,0.32216237]
[1732105012150,1e-06,93506.0,93505.0,0.31286237]
[1732105012363,1e-06,93506.0,93505.0,0.31286364]
[1732105013495,1e-06,93506.0,93505.0,0.1231008]
[1732105015066,1e-06,93506.0,93505.0,0.1230008]
[1732105015583,1e-06,93506.0,93505.0,0.0230008]
[1732105016966,0.10711612,93506.0,93505.0,0.0230008]
[1732105017189,0.11711612,93506.0,93505.0,0.0230008]
[1732105017416,0.13707194,93506.0,93505.0,0.0230008]
[1732105017623,0.11711612,93506.0,93505.0,0.0230008]
[1732105018319,0.13707194,93506.0,93505.0,0.0230008]
[1732105019176,1e-06,93506.0,93505.0,0.0230008]
[1732105019397,1e-06,93506.0,93505.0,0.02407011]
[1732105020061,1e-06,93506.0,93505.0,0.0230008]
[1732105022347,1e-06,93506.0,93505.0,0.02407011]
[1732105022568,1e-06,93506.0,93505.0,0.12407011]
[1732105022782,1e-06,93506.0,93505.0,0.0230008]
[1732105024908,0.01998501,93506.0,93505.0,0.0230008]
[1732105026254,0.01998501,93506.0,93505.0,0.0229008]
[1732105026699,1e-08,93506.0,93505.0,0.02386445]
[1732105026940,0.0008558,93518.0,93517.0,0.021386]
[1732105029194,0.0008558,93518.0,93517.0,0.05958785]
[1732105029424,0.0008558,93518.0,93517.0,0.06065705]
[1732105029651,0.0008558,93518.0,93517.0,0.0224552]
[1732105029889,0.0008558,93518.0,93517.0,0.1224552]
[1732105030102,0.11797092,93518.0,93517.0,0.121386]
[1732105030325,0.19747092,93518.0,93517.0,0.121386]
[1732105030973,0.0008558,93518.0,93517.0,0.021386]
[1732105031835,0.0008558,93518.0,93517.0,0.21234759]
[1732105032074,0.0008558,93518.0,93517.0,0.12245522]
[1732105032574,0.0008558,93518.0,93517.0,0.121386]
[1732105033002,0.0008558,93518.0,93517.0,0.31127837]
[1732105033212,0.0008558,93518.0,93517.0,0.021386]
[1732105033422,0.0008558,93518.0,93517.0,0.0224552]
[1732105033642,0.0008558,93518.0,93517.0,0.31133729]
[1732105034501,0.0008558,93518.0,93517.0,0.121386]
[1732105035555,0.0008558,93518.0,93517.0,0.35865633]
[1732105035767,0.0008558,93518.0,93517.0,0.021386]
[1732105036243,0.0008558,93518.0,93517.0,0.021286]
[1732105036663,0.10797092,93518.0,93517.0,0.021286]
[1732105036876,0.11797092,93518.0,93517.0,0.021286]
[1732105038253,0.24707092,93518.0,93517.0,0.021286]
[1732105038464,0.27903135,93518.0,93517.0,0.021286]
[1732105038674,0.27903135,93518.0,93517.0,0.21147191]
[1732105038888,0.29900868,93518.0,93517.0,0.21147191]
[1732105039097,0.29900868,93518.0,93517.0,0.2114803]
[1732105039321,0.29900868,93518.0,93517.0,0.021286]
[1732105040742,0.31235142,93518.0,93517.0,0.021286]
[1732105041456,0.31235152,93518.0,93517.0,0.021286]
[1732105042600,0.29900868,93518.0,93517.0,0.021286]
[1732105042735,0.31235147,93518.0,93517.0,0.021286]
[1732105043579,0.31235147,93518.0,93517.0,0.021186]
[1732105044668,0.27903089,93518.0,93517.0,0.021186]
[1732105044895,0.31234916,93518.0,93517.0,0.021186]
[1732105045254,0.31234916,93518.0,93517.0,0.02014115]
[1732105045664,0.31234916,93518.0,93515.0,0.15873682]
[1732105045665,0.0107,93516.0,93515.0,0.021386]
[1732105045802,0.01,93506.0,93505.0,0.0231008]
[1732105046001,0.18309496,93506.0,93505.0,0.0600451]
[1732105046247,0.18309496,93506.0,93505.0,0.0231008]
[1732105047104,0.26549496,93506.0,93505.0,0.0231008]
[1732105047312,0.33629496,93506.0,93505.0,0.0231008]
[1732105047511,0.33629496,93506.0,93505.0,0.0017118]
[1732105048260,0.34629496,93506.0,93505.0,0.0017118]
[1732105048669,0.45323996,93506.0,93505.0,0.0017118]
[1732105048879,0.34629496,93506.0,93505.0,0.0017118]
[1732105049081,0.34629496,93506.0,93505.0,0.0231008]
[1732105049303,0.34629496,93506.0,93505.0,0.0017118]
[1732105049959,0.34629496,93506.0,93477.0,0.0017108]
[1732105049960,0.0437,93478.0,93477.0,0.0017108]
[1732105050164,0.40140313,93478.0,93477.0,0.0017108]
[1732105050377,0.45997676,93478.0,93477.0,0.0017108]
[1732105050597,0.45997676,93478.0,93477.0,0.0016108]
[1732105050839,0.1376,93457.0,93456.0,0.34248351]
[1732105051037,0.26465952,93457.0,93456.0,0.35981712]
[1732105051263,0.29765952,93457.0,93456.0,0.35981712]
[1732105051516,0.29765952,93457.0,93456.0,0.32108351]
[1732105051729,0.32952627,93457.0,93456.0,0.32108351]
[1732105052168,0.34287932,93457.0,93456.0,0.32108351]
[1732105052377,0.32952627,93457.0,93456.0,0.32108351]
[1732105055174,0.27771512,93457.0,93456.0,0.32108351]
[1732105055393,0.32932679,93457.0,93456.0,0.32108351]
[1732105055603,0.34267988,93457.0,93456.0,0.32108351]
[1732105056038,0.34264985,93457.0,93456.0,0.32108351]
[1732105056500,0.34264985,93457.0,93456.0,0.34248351]
[1732105056771,0.18204985,93457.0,93456.0,0.34248351]
[1732105056983,0.01983909,93457.0,93456.0,0.44248351]
[1732105057192,0.01,93459.0,93458.0,0.021399]
[1732105057402,0.11711512,93459.0,93458.0,0.021399]